fUST/lending_fUST_20240828
["ID","MTS","AMOUNT","RATE_DAILY","PERIOD"]
[336414011,1724817050333,-717.59497669,0.00012876,2]
[336414012,1724817050342,-500.0,0.00012876,2]
[336414013,1724817050351,-500.0,0.00012876,2]
[336414014,1724817050360,-845.11,0.00012876,2]
[336414015,1724817050369,-620.35,0.00012876,2]
[336414016,1724817050378,-1931.29,0.00012876,2]
[336414017,1724817050389,-1019.0,0.00012876,2]
[336414018,1724817050400,-4333.78,0.00012876,2]
[336414019,1724817050410,-526.01,0.00012876,2]
[336414020,1724817050421,-2280.18,0.00012876,2]
[336414021,1724817050431,-500.0,0.00012876,2]
[336414022,1724817050440,-2059.76,0.00012876,2]
[336414023,1724817050449,-500.0,0.00012876,2]
[336414024,1724817050459,-8903.16207482,0.00012876,2]
[336414025,1724817051246,-7843.90841864,0.00010858,2]
[336414026,1724817051256,-6249.71,0.0001178,2]
[336414027,1724817051266,-777.0011055,0.00011987,2]
[336414028,1724817051275,-6249.71,0.00012054,2]
[336414029,1724817051287,-6249.71,0.00012328,2]
[336414030,1724817051296,-6249.71,0.00012602,2]
[336414031,1724817051306,-1372.42792518,0.00012876,2]
[336414032,1724817051316,-500.0,0.00012876,2]
[336414033,1724817051327,-500.0,0.00012876,2]
[336414034,1724817051338,-984.45,0.00012876,2]
[336414035,1724817051348,-500.0,0.00012876,2]
[336414036,1724817051358,-2679.66,0.00012876,2]
[336414037,1724817051368,-6249.71,0.00012876,2]
[336414038,1724817051379,-731.405661,0.00012877,2]
[336414039,1724817051389,-151.0,0.000129,2]
[336414040,1724817051400,-151.0,0.000129,2]
[336414041,1724817051409,-6032.53854831,0.000129,2]
[336414042,1724817051421,-174.02138082,0.00012985,2]
[336414043,1724817051431,-493.77204427,0.00012989,2]
[336414044,1724817051441,-730.68505647,0.00012989,2]
[336414045,1724817051452,-2244.31012231,0.00012989,2]
[336414046,1724817051462,-154.60575532,0.00012991,2]
[336414047,1724817051472,-544.51359376,0.00012991,2]
[336414048,1724817051482,-154.95152803,0.00012991,2]
[336414049,1724817051492,-151.0,0.00012991,2]
[336414050,1724817051502,-387.019789,0.00012991,2]
[336414051,1724817051512,-387.019789,0.00012991,2]
[336414052,1724817051523,-600.0,0.00012998,2]
[336414053,1724817051537,-569.97573911,0.00012999,2]
[336414054,1724817051548,-154.84889915,0.00012999,2]
[336414055,1724817051559,-161.00128541,0.00012999,2]
[336414056,1724817051569,-337.13775619,0.00013,2]
[336414057,1724817051579,-914.31962285,0.00013,2]
[336414058,1724817051589,-150.112233,0.00013,2]
[336414059,1724817051598,-150.112233,0.00013,2]
[336414060,1724817051608,-150.112233,0.00013,2]
[336414061,1724817051618,-150.112233,0.00013,2]
[336414062,1724817051627,-150.112233,0.00013,2]
[336414063,1724817051636,-863.27824545,0.00013,2]
[336414064,1724817051646,-825.52481824,0.00013019,2]
[336414065,1724817051655,-306.9791416,0.00013025,2]
[336414066,1724817051666,-155.49690018,0.00013025,2]
[336414067,1724817051676,-180.49397946,0.00013025,2]
[336414068,1724817051686,-155.05612507,0.00013025,2]
[336414069,1724817051697,-417.46936977,0.00013025,3]
[336414070,1724817051706,-196.85760175,0.00013025,2]
[336414071,1724817051716,-414.43444224,0.00013025,2]
[336414072,1724817051726,-154.98808913,0.00013025,2]
[336414073,1724817051736,-210.98691512,0.00013025,2]
[336414074,1724817051747,-155.748965,0.00013025,2]
[336414075,1724817051756,-155.46994513,0.00013025,2]
[336414076,1724817051766,-202.16585191,0.00013025,2]
[336414077,1724817051776,-164.53280136,0.00013025,2]
[336414078,1724817051787,-155.34423056,0.00013051,2]
[336414079,1724817051797,-183.11998377,0.00013051,2]
[336414080,1724817051807,-195.69181628,0.00013051,2]
[336414081,1724817051820,-288.55434071,0.00013051,2]
[336414082,1724817051830,-304.47582911,0.00013051,2]
[336414083,1724817051839,-998.51610973,0.00013058,2]
[336414084,1724817051849,-150.112233,0.000131,2]
[336414085,1724817051861,-150.112233,0.000131,2]
[336414086,1724817051870,-150.112233,0.000131,2]
[336414087,1724817051879,-150.112233,0.000131,2]
[336414088,1724817051889,-150.112233,0.000131,2]
[336414089,1724817051899,-150.112233,0.000131,2]
[336414090,1724817051909,-628.02,0.0001315,2]
[336414091,1724817051918,-500.0,0.0001315,2]
[336414092,1724817051928,-627.93,0.0001315,2]
[336414093,1724817051937,-500.0,0.0001315,2]
[336414094,1724817051947,-529.29,0.0001315,2]
[336414095,1724817051958,-1772.74,0.0001315,2]
[336414096,1724817051967,-500.0,0.0001315,2]
[336414097,1724817051977,-500.0,0.0001315,2]
[336414098,1724817051986,-523.96,0.0001315,2]
[336414099,1724817051996,-500.0,0.0001315,2]
[336414100,1724817052006,-2017.69,0.0001315,2]
[336414101,1724817052015,-3505.12,0.0001315,2]
[336414102,1724817052025,-530.04,0.0001315,2]
[336414103,1724817052037,-1714.78,0.0001315,2]
[336414104,1724817052047,-500.0,0.0001315,2]
[336414105,1724817052058,-500.0,0.0001315,2]
[336414106,1724817052068,-845.11,0.0001315,2]
[336414107,1724817052078,-620.35,0.0001315,2]
[336414108,1724817052088,-1931.29,0.0001315,2]
[336414109,1724817052098,-1019.0,0.0001315,2]
[336414110,1724817052108,-4333.78,0.0001315,2]
[336414111,1724817052117,-526.01,0.0001315,2]
[336414112,1724817052127,-2280.18,0.0001315,2]
[336414113,1724817052136,-282.89,0.0001315,2]
[336414114,1724817052146,-2059.76,0.0001315,2]
[336414115,1724817052155,-500.0,0.0001315,2]
[336414116,1724817052165,-10275.59,0.0001315,2]
[336414117,1724817052175,-500.0,0.0001315,2]
[336414118,1724817052186,-500.0,0.0001315,2]
[336414119,1724817052197,-984.45,0.0001315,2]
[336414120,1724817052208,-500.0,0.0001315,2]
[336414121,1724817052217,-2679.66,0.0001315,2]
[336414122,1724817052228,-6249.71,0.0001315,2]
[336414123,1724817052237,-9030.71466467,0.00013187,2]
[336414124,1724817052247,-600.0,0.00013237,2]
[336414125,1724817052257,-600.0,0.00013267,2]
[336414126,1724817052266,-600.0,0.00013277,2]
[336414127,1724817052276,-8852.09163784,0.00013282,2]
[336414128,1724817052289,-1612.91579182,0.00013282,2]
[336414129,1724817052421,-474.24148923,0.00013282,2]
[336414130,1724817052436,-600.0,0.00013287,2]
[336414131,1724817052446,-600.0,0.00013287,2]
[336414132,1724817052455,-600.0,0.00013287,2]
[336414133,1724817052465,-600.0,0.00013287,2]
[336414134,1724817052474,-600.0,0.00013288,2]
[336414135,1724817052484,-155.60592603,0.00013333,2]
[336414136,1724817052493,-155.35642955,0.00013333,2]
[336414137,1724817052503,-627.85788953,0.00013333,2]
[336414138,1724817052513,-154.74467129,0.00013333,2]
[336414139,1724817052523,-628.02,0.00013424,2]
[336414140,1724817052537,-500.0,0.00013424,2]
[336414141,1724817052549,-627.93,0.00013424,2]
[336414142,1724817052567,-500.0,0.00013424,2]
[336414143,1724817052576,-529.29,0.00013424,2]
[336414144,1724817052586,-1772.74,0.00013424,2]
[336414145,1724817052595,-500.0,0.00013424,2]
[336414146,1724817052605,-500.0,0.00013424,2]
[336414147,1724817052614,-523.96,0.00013424,2]
[336414148,1724817052624,-500.0,0.00013424,2]
[336414149,1724817052633,-2017.69,0.00013424,2]
[336414150,1724817052642,-3505.12,0.00013424,2]
[336414151,1724817052652,-530.04,0.00013424,2]
[336414152,1724817052662,-1714.78,0.00013424,2]
[336414153,1724817052671,-500.0,0.00013424,2]
[336414154,1724817052682,-500.0,0.00013424,2]
[336414155,1724817052693,-845.11,0.00013424,2]
[336414156,1724817052703,-620.35,0.00013424,2]
[336414157,1724817052712,-1931.29,0.00013424,2]
[336414158,1724817052722,-1019.0,0.00013424,2]
[336414159,1724817052731,-4333.78,0.00013424,2]
[336414160,1724817052742,-526.01,0.00013424,2]
[336414161,1724817052753,-2280.18,0.00013424,2]
[336414162,1724817052763,-2059.76,0.00013424,2]
[336414163,1724817052773,-500.0,0.00013424,2]
[336414164,1724817052783,-10275.59,0.00013424,2]
[336414165,1724817052793,-500.0,0.00013424,2]
[336414166,1724817052803,-500.0,0.00013424,2]
[336414167,1724817052815,-465.53,0.00013424,2]
[336414168,1724817052824,-984.45,0.00013424,2]
[336414169,1724817052834,-2679.66,0.00013424,2]
[336414170,1724817052844,-899.64193172,0.00013477,2]
[336414171,1724817052855,-899.64193172,0.00013477,2]
[336414172,1724817052864,-155.087297,0.00013477,2]
[336414173,1724817052873,-271.41917196,0.00013477,2]
[336414174,1724817052882,-196.93547315,0.00013477,2]
[336414175,1724817052893,-155.07432915,0.00013477,2]
[336414176,1724817052902,-600.0,0.00013483,2]
[336414177,1724817052911,-301.82720385,0.00013497,2]
[336414178,1724817052920,-2129.87511377,0.00013497,2]
[336414179,1724817052932,-156.97889283,0.00013497,2]
[336414180,1724817052941,-200.0,0.00013597,2]
[336414181,1724817052951,-818.29100488,0.00013597,2]
[336414182,1724817052962,-2920.08800339,0.00013599,2]
[336414183,1724817052973,-150.112236,0.000136,2]
[336414184,1724817052982,-154.86173896,0.00013688,2]
[336414185,1724817052992,-435.97715689,0.00013698,2]
[336414186,1724817053003,-607.65598371,0.00013698,2]
[336414187,1724817053012,-500.0,0.00013698,2]
[336414188,1724817053022,-607.65598371,0.00013698,2]
[336414189,1724817053032,-607.65598371,0.00013698,2]
[336414190,1724817053043,-500.0,0.00013698,2]
[336414191,1724817053052,-607.65598371,0.00013698,2]
[336414192,1724817053061,-607.65598371,0.00013698,2]
[336414193,1724817053071,-607.65598371,0.00013698,2]
[336414194,1724817053081,-515.23081175,0.00013698,2]
[336414195,1724817053090,-607.65598371,0.00013698,2]
[336414196,1724817053100,-607.65598371,0.00013698,2]
[336414197,1724817053109,-607.65598371,0.00013698,2]
[336414198,1724817053118,-607.65598371,0.00013698,2]
[336414199,1724817053128,-607.65598371,0.00013698,2]
[336414200,1724817053137,-607.65598371,0.00013698,2]
[336414201,1724817053147,-607.65598371,0.00013698,2]
[336414202,1724817053156,-607.65598371,0.00013698,2]
[336414203,1724817053167,-607.65598371,0.00013698,2]
[336414204,1724817053176,-607.65598371,0.00013698,2]
[336414205,1724817053187,-607.65598371,0.00013698,2]
[336414206,1724817053198,-607.65598371,0.00013698,2]
[336414207,1724817053207,-175.12606775,0.00013698,2]
[336414208,1724817053217,-607.65598371,0.00013698,2]
[336414209,1724817053226,-607.65598371,0.00013698,2]
[336414210,1724817053235,-607.65598371,0.00013698,2]
[336414211,1724817053245,-607.65598371,0.00013698,2]
[336414212,1724817053254,-607.65598371,0.00013698,2]
[336414213,1724817053263,-607.65598371,0.00013698,2]
[336414214,1724817053272,-607.65598371,0.00013698,2]
[336414215,1724817053282,-607.65598371,0.00013698,2]
[336414216,1724817053297,-607.65598371,0.00013698,2]
[336414217,1724817053307,-607.65598371,0.00013698,2]
[336414218,1724817053316,-607.65598371,0.00013698,2]
[336414219,1724817053325,-649.3846336,0.00013698,2]
[336414220,1724817053335,-186.84735295,0.00013698,2]
[336414221,1724817053344,-500.0,0.00013698,2]
[336414222,1724817053353,-500.0,0.00013698,2]
[336414223,1724817053363,-372.21425456,0.00013698,2]
[336414224,1724817053372,-500.0,0.00013698,2]
[336414225,1724817053381,-500.0,0.00013698,2]
[336414226,1724817053390,-336.64033915,0.00013698,2]
[336414227,1724817053399,-252.96274905,0.00013698,2]
[336414228,1724817053408,-2638.08674313,0.00013698,2]
[336414229,1724817053451,-6328.36451505,0.00013698,2]
[336414230,1724817053460,-229.82665384,0.00013698,2]
[336414231,1724817053469,-628.02,0.00013698,2]
[336414232,1724817053479,-500.0,0.00013698,2]
[336414233,1724817053488,-627.93,0.00013698,2]
[336414234,1724817053497,-500.0,0.00013698,2]
[336414235,1724817053507,-529.29,0.00013698,2]
[336414236,1724817053516,-1772.74,0.00013698,2]
[336414237,1724817053528,-344.88908534,0.00013698,2]
[336414238,1724817053541,-523.96,0.00013698,2]
[336414239,1724817053550,-500.0,0.00013698,2]
[336414240,1724817053559,-2017.69,0.00013698,2]
[336414241,1724817053568,-3505.12,0.00013698,2]
[336414242,1724817053577,-530.04,0.00013698,2]
[336414243,1724817053587,-1714.78,0.00013698,2]
[336414244,1724817053598,-337.81,0.00013698,2]
[336414245,1724817053608,-500.0,0.00013698,2]
[336414246,1724817053620,-845.11,0.00013698,2]
[336414247,1724817053630,-620.35,0.00013698,2]
[336414248,1724817053639,-1931.29,0.00013698,2]
[336414249,1724817053648,-1019.0,0.00013698,2]
[336414250,1724817053659,-4333.78,0.00013698,2]
[336414251,1724817053670,-526.01,0.00013698,2]
[336414252,1724817053679,-2280.18,0.00013698,2]
[336414253,1724817053688,-2059.76,0.00013698,2]
[336414254,1724817053698,-500.0,0.00013698,2]
[336414255,1724817053707,-281.28550327,0.00013698,2]
[336414256,1724817053716,-10275.59,0.00013698,2]
[336414257,1724817053726,-672.18127143,0.00013698,2]
[336414258,1724817053736,-500.0,0.00013698,2]
[336414259,1724817053749,-500.0,0.00013698,2]
[336414260,1724817053759,-984.45,0.00013698,2]
[336414261,1724817053769,-2679.66,0.00013698,2]
[336414262,1724817053780,-764.587169,0.00013699,2]
[336414263,1724817053800,-3000.0,0.00013699,2]
[336414264,1724817053810,-150.112233,0.000137,2]
[336414265,1724817053823,-150.112233,0.000139,2]
[336414266,1724817053833,-151.0,0.00013971,2]
[336414267,1724817053843,-573.426343,0.00013971,2]
[336414268,1724817053852,-573.426343,0.00013971,2]
[336414269,1724817053862,-617.127279,0.00013971,2]
[336414270,1724817053872,-617.127279,0.00013971,2]
[336414271,1724817053881,-191.640316,0.00013971,2]
[336414272,1724817053891,-191.640316,0.00013971,2]
[336414273,1724817053902,-481.204689,0.00013972,2]
[336414274,1724817053913,-481.204689,0.00013972,2]
[336414275,1724817053923,-628.02,0.00013972,2]
[336414276,1724817053932,-500.0,0.00013972,2]
[336414277,1724817053943,-627.93,0.00013972,2]
[336414278,1724817053953,-500.0,0.00013972,2]
[336414279,1724817053963,-529.29,0.00013972,2]
[336414280,1724817053974,-1772.74,0.00013972,2]
[336414281,1724817053984,-188.488455,0.00013972,2]
[336414282,1724817053994,-188.488455,0.00013972,2]
[336414283,1724817054005,-709.073354,0.00013972,2]
[336414284,1724817054014,-709.073354,0.00013972,2]
[336414285,1724817054024,-523.96,0.00013972,2]
[336414286,1724817054037,-500.0,0.00013972,2]
[336414287,1724817054047,-2017.69,0.00013972,2]
[336414288,1724817054057,-3505.12,0.00013972,2]
[336414289,1724817054067,-530.04,0.00013972,2]
[336414290,1724817054077,-1714.78,0.00013972,2]
[336414291,1724817054087,-500.0,0.00013972,2]
[336414292,1724817054096,-845.11,0.00013972,2]
[336414293,1724817054106,-620.35,0.00013972,2]
[336414294,1724817054115,-1931.29,0.00013972,2]
[336414295,1724817054126,-1019.0,0.00013972,2]
[336414296,1724817054136,-4333.78,0.00013972,2]
[336414297,1724817054146,-526.01,0.00013972,2]
[336414298,1724817054156,-2280.18,0.00013972,2]
[336414299,1724817054165,-2059.76,0.00013972,2]
[336414300,1724817054175,-248.80021354,0.00013972,2]
[336414301,1724817054185,-451.820278,0.00013972,2]
[336414302,1724817054195,-451.820278,0.00013972,2]
[336414303,1724817054205,-10275.59,0.00013972,2]
[336414304,1724817054216,-500.0,0.00013972,2]
[336414305,1724817054226,-427.77966793,0.00013972,2]
[336414306,1724817054237,-984.45,0.00013972,2]
[336414307,1724817054246,-1688.3120967,0.00013972,2]
[336414308,1724817054259,-991.3479033,0.00013972,2]
[336414309,1724817054268,-150.0,0.00013988,2]
[336414310,1724817054277,-522.0,0.00013988,2]
[336414311,1724817054289,-150.0,0.00013988,2]
[336414312,1724817054299,-150.112233,0.00014,2]
[336414313,1724817054310,-1000.0,0.00014,2]
[336414314,1724817054320,-154.56721181,0.0001408,2]
[336414315,1724817054329,-154.56721181,0.0001408,2]
[336414316,1724817054339,-150.112233,0.000141,2]
[336414317,1724817054349,-9022.18683899,0.00014214,5]
[336414318,1724817056239,-353.18,0.00010958,2]
[336414319,1724817056249,-154.56721181,0.00011894,2]
[336414320,1724817056258,-6228.82713635,0.00013424,2]
[336414321,1724817056271,-20.88286365,0.00013424,2]
[336414322,1724817056283,-308.89734662,0.00013496,2]
[336414323,1724817056296,-6249.71,0.00013698,2]
[336414324,1724817056306,-1752.20978973,0.00013972,2]
[336414325,1724817056319,-4497.50021027,0.00013972,2]
[336414326,1724817056329,-388.8,0.0001404,2]
[336414327,1724817056341,-52.09978974,0.00014214,5]
[336414328,1724817056466,-40.37652786,0.00010958,2]
[336414334,1724817951159,-218.98055094,7.954e-05,2]
[336414335,1724817951183,-155.19849876,8.769e-05,2]
[336414336,1724817951209,-521.86780136,8.883e-05,2]
[336414337,1724817951232,-416.9316227,9.429e-05,2]
[336414338,1724817951255,-250.0000098,9.447e-05,2]
[336414339,1724817951276,-154.57491897,9.524e-05,2]
[336414340,1724817951298,-9.31216436,0.0001,2]
[336414345,1724818051176,-300.0,9.786e-05,2]
[336414346,1724818051199,-300.0,9.786e-05,2]
[336414347,1724818051221,-1177.71232733,9.787e-05,2]
[336414351,1724818150129,-17849.32549029,9.787e-05,2]
[336414353,1724818158310,-5872.96218238,9.787e-05,2]
[336414354,1724818158334,-11933.08660388,9.787e-05,2]
[336414355,1724818159107,-1487.06972602,9.787e-05,2]
[336414356,1724818159134,-6116.4013126,9.787e-05,2]
[336414357,1724818159156,-1316.22658027,9.899e-05,2]
[336414358,1724818160122,-616.06260801,9.899e-05,2]
[336414359,1724818163134,-782.7765067,9.899e-05,2]
[336414360,1724818163159,-145.24734105,0.0001,2]
[336414361,1724818163182,-1673.46491865,0.0001,2]
[336414362,1724818163204,-164.560786,0.00010001,2]
[336414363,1724818163230,-164.560786,0.0001003,2]
[336414364,1724818163253,-164.560786,0.00010059,2]
[336414365,1724818163275,-8852.09163784,0.00010081,2]
[336414366,1724818163297,-164.560786,0.00010088,2]
[336414367,1724818163320,-164.560786,0.00010117,2]
[336414368,1724818163344,-164.560786,0.00010146,2]
[336414369,1724818163365,-164.560786,0.00010175,2]
[336414370,1724818163387,-164.560786,0.00010204,2]
[336414371,1724818163409,-164.560786,0.00010232,2]
[336414372,1724818163429,-164.560786,0.00010261,2]
[336414373,1724818163450,-164.560786,0.0001029,2]
[336414374,1724818163470,-164.560786,0.00010319,2]
[336414375,1724818163492,-77.04076376,0.00010348,2]
[336414376,1724818173153,-87.52002224,0.00010348,2]
[336414377,1724818173174,-164.560786,0.00010377,2]
[336414378,1724818173195,-164.560786,0.00010406,2]
[336414379,1724818173220,-164.560786,0.00010435,2]
[336414380,1724818173243,-164.560786,0.00010464,2]
[336414381,1724818173266,-164.560786,0.00010493,2]
[336414382,1724818173288,-164.560786,0.00010522,2]
[336414385,1724818205440,204.31259733,9.686e-05,2]
[336414489,1724818237879,-154.57491897,0.00010958,2]
[336414491,1724818237893,-500.96137136,0.00010958,2]
[336414492,1724818237903,-500.0,0.00010958,2]
[336414493,1724818237913,-500.0,0.00010958,2]
[336414494,1724818237922,-159.71924606,0.00010958,2]
[336414495,1724818237931,-500.0,0.00010958,2]
[336414497,1724818237942,-500.0,0.00010958,2]
[336414499,1724818237952,-493.2026112,0.00010958,2]
[336414501,1724818237964,-500.0,0.00010958,2]
[336414504,1724818237979,-500.0,0.00010958,2]
[336414505,1724818237990,-500.0,0.00010958,2]
[336414506,1724818238000,-500.0,0.00010958,2]
[336414507,1724818238011,-500.0,0.00010958,2]
[336414508,1724818238022,-500.0,0.00010958,2]
[336414509,1724818238033,-500.0,0.00010958,2]
[336414510,1724818238042,-500.0,0.00010958,2]
[336414511,1724818238052,-501.90842142,0.00010958,2]
[336414512,1724818238061,-500.0,0.00010958,2]
[336414513,1724818238071,-500.0,0.00010958,2]
[336414514,1724818238080,-500.0,0.00010958,2]
[336414515,1724818238090,-500.0,0.00010958,2]
[336414516,1724818238099,-201.82732898,0.00010958,2]
[336414517,1724818238108,-500.0,0.00010958,2]
[336414518,1724818238118,-500.0,0.00010958,2]
[336414519,1724818238127,-500.0,0.00010958,2]
[336414520,1724818238137,-500.85238398,0.00010958,2]
[336414521,1724818238146,-500.39436697,0.00010958,2]
[336414522,1724818238155,-500.0,0.00010958,2]
[336414523,1724818238165,-228.78,0.00010958,2]
[336414524,1724818238175,-501.56368987,0.00010958,2]
[336414525,1724818238185,-500.2946212,0.00010958,2]
[336414526,1724818238195,-500.0,0.00010958,2]
[336414527,1724818238208,-500.0,0.00010958,2]
[336414528,1724818238217,-500.0,0.00010958,2]
[336414529,1724818238229,-502.2689802,0.00010958,2]
[336414530,1724818238242,-500.46830732,0.00010958,2]
[336414531,1724818238254,-500.0,0.00010958,2]
[336414532,1724818238263,-500.0,0.00010958,2]
[336414533,1724818238273,-502.08794753,0.00010958,2]
[336414534,1724818238283,-505.98306788,0.00010958,2]
[336414535,1724818238293,-500.0,0.00010958,2]
[336414536,1724818238304,-500.0,0.00010958,2]
[336414537,1724818238317,-350.0652073,0.00010958,2]
[336414538,1724818238329,-504.68206752,0.00010958,2]
[336414539,1724818238341,-504.05827255,0.00010958,2]
[336414540,1724818238352,-503.10608418,0.00010958,2]
[336414541,1724818238364,-502.97523156,0.00010958,2]
[336414542,1724818238376,-502.64662912,0.00010958,2]
[336414543,1724818238386,-500.0,0.00010958,2]
[336414544,1724818238400,-501.52334955,0.00010958,2]
[336414545,1724818238411,-500.0,0.00010958,2]
[336414546,1724818238420,-500.78629167,0.00010958,2]
[336414547,1724818238430,-508.00099831,0.00010958,2]
[336414548,1724818238439,-500.94335105,0.00010958,2]
[336414549,1724818238450,-504.08391123,0.00010958,2]
[336414550,1724818238460,-501.04238566,0.00010958,2]
[336414551,1724818238471,-502.02114177,0.00010958,2]
[336414552,1724818238483,-500.0,0.00010958,2]
[336414553,1724818238495,-500.0,0.00010958,2]
[336414554,1724818238506,-500.77665896,0.00010958,2]
[336414555,1724818238516,-500.0,0.00010958,2]
[336414556,1724818238528,-503.37847548,0.00010958,2]
[336414557,1724818238540,-504.02081708,0.00010958,2]
[336414558,1724818238553,-502.2796137,0.00010958,2]
[336414559,1724818238563,-500.0,0.00010958,2]
[336414560,1724818238572,-502.2377473,0.00010958,2]
[336414561,1724818238582,-502.33010076,0.00010958,2]
[336414562,1724818238593,-500.0,0.00010958,2]
[336414563,1724818238605,-500.0,0.00010958,2]
[336414564,1724818238616,-561.94579405,0.00010958,2]
[336414565,1724818238627,-501.70415302,0.00010958,2]
[336414566,1724818238636,-500.0,0.00010958,2]
[336414567,1724818238647,-500.0,0.00010958,2]
[336414568,1724818238658,-500.0,0.00010958,2]
[336414569,1724818238668,-501.58574082,0.00010958,2]
[336414570,1724818238677,-501.60813842,0.00010958,2]
[336414571,1724818238687,-187.44618193,0.00010958,2]
[336414572,1724818238697,-503.16061577,0.00010958,2]
[336414573,1724818238707,-500.0,0.00010958,2]
[336414574,1724818238717,-500.0,0.00010958,2]
[336414575,1724818238728,-500.0,0.00010958,2]
[336414576,1724818238739,-500.0,0.00010958,2]
[336414577,1724818238749,-500.0,0.00010958,2]
[336414578,1724818238758,-503.20642777,0.00010958,2]
[336414579,1724818238768,-536.53,0.00010958,2]
[336414580,1724818238779,-500.0,0.00010958,2]
[336414581,1724818238789,-500.0,0.00010958,2]
[336414582,1724818238800,-500.0,0.00010958,2]
[336414583,1724818238810,-500.0,0.00010958,2]
[336414584,1724818238819,-502.07123917,0.00010958,2]
[336414585,1724818238830,-500.0,0.00010958,2]
[336414586,1724818238840,-500.0,0.00010958,2]
[336414587,1724818238853,-500.0,0.00010958,2]
[336414588,1724818238875,-500.0,0.00010958,2]
[336414589,1724818238891,-500.0,0.00010958,2]
[336414590,1724818238901,-500.65525425,0.00010958,2]
[336414591,1724818238910,-500.0,0.00010958,2]
[336414592,1724818238920,-503.16526203,0.00010958,2]
[336414593,1724818238929,-500.0,0.00010958,2]
[336414594,1724818238939,-331.88796279,0.00010958,2]
[336414595,1724818238950,-500.0,0.00010958,2]
[336414596,1724818238961,-417.30141307,0.00010958,2]
[336414597,1724818238972,-500.0,0.00010958,2]
[336414598,1724818238982,-7706.69,0.00010958,2]
[336414599,1724818238992,-500.0,0.00010958,2]
[336414600,1724818239003,-500.0,0.00010958,2]
[336414601,1724818239014,-500.0,0.00010958,2]
[336414602,1724818239024,-500.0,0.00010958,2]
[336414603,1724818239034,-217.05,0.00010958,2]
[336414604,1724818239043,-500.0,0.00010958,2]
[336414605,1724818239054,-500.0,0.00010958,2]
[336414606,1724818239065,-2154.49,0.00010958,2]
[336414607,1724818239076,-3124.85,0.00010958,2]
[336414608,1724818239086,-500.0,0.00010958,2]
[336414609,1724818239096,-500.0,0.00010958,2]
[336414610,1724818239107,-528.32,0.00010958,2]
[336414611,1724818239117,-500.0,0.00010958,2]
[336414612,1724818239127,-500.0,0.00010958,2]
[336414613,1724818239136,-738.34,0.00010958,2]
[336414614,1724818239149,-500.0,0.00010958,2]
[336414615,1724818239160,-500.0,0.00010958,2]
[336414616,1724818239171,-500.0,0.00010958,2]
[336414617,1724818239183,-1403.42,0.00010958,2]
[336414619,1724818239193,-500.0,0.00010958,2]
[336414620,1724818239203,-500.0,0.00010958,2]
[336414621,1724818239213,-500.0,0.00010958,2]
[336414622,1724818239223,-500.0,0.00010958,2]
[336414623,1724818239235,-500.0,0.00010958,2]
[336414624,1724818239245,-500.0,0.00010958,2]
[336414625,1724818239255,-1681.41,0.00010958,2]
[336414626,1724818239265,-500.0,0.00010958,2]
[336414627,1724818239275,-2920.93,0.00010958,2]
[336414628,1724818239285,-500.0,0.00010958,2]
[336414629,1724818239295,-500.0,0.00010958,2]
[336414630,1724818239305,-500.0,0.00010958,2]
[336414631,1724818239316,-500.0,0.00010958,2]
[336414632,1724818239327,-500.0,0.00010958,2]
[336414633,1724818239336,-500.0,0.00010958,2]
[336414634,1724818239346,-500.0,0.00010958,2]
[336414635,1724818239356,-500.0,0.00010958,2]